[Event "*** Titled Tuesday Blitz"]
[Site "Chess.com"]
[Date "2020.11.24"]
[Round "7"]
[White "Grandmaster2B"]
[Black "Alexander_Kachko"]
[Result "0-1"]
[WhiteElo "2528"]
[BlackElo "2781"]
[TimeControl "180+1"]
[EndTime "11:33:29 PST"]
[Termination "Alexander_Kachko won by resignation"]

1. e4 {[%clk 0:03:00.9]} 1... Nc6 {[%clk 0:03:00]} 2. d4 {[%clk 0:02:54.8]} 2...
e5 {[%clk 0:02:59.5]} 3. d5 {[%clk 0:02:51.1]} 3... Nce7 {[%clk 0:02:59.4]} 4.
Nc3 {[%clk 0:02:50.3]} 4... Ng6 {[%clk 0:02:59.4]} 5. g3 {[%clk 0:02:48.1]} 5...
Bc5 {[%clk 0:02:59.1]} 6. Bg2 {[%clk 0:02:47]} 6... d6 {[%clk 0:02:58.3]} 7.
Nge2 {[%clk 0:02:44.2]} 7... a5 {[%clk 0:02:57.8]} 8. O-O {[%clk 0:02:43.7]}
8... N8e7 {[%clk 0:02:57.2]} 9. Be3 {[%clk 0:02:36]} 9... b6 {[%clk 0:02:56.5]}
10. Qd2 {[%clk 0:02:35]} 10... O-O {[%clk 0:02:55.9]} 11. h4 {[%clk 0:02:26.9]}
11... h6 {[%clk 0:02:42.6]} 12. Kh2 {[%clk 0:02:13.6]} 12... f5 {[%clk
0:02:41.8]} 13. exf5 {[%clk 0:02:00.6]} 13... Nxf5 {[%clk 0:02:41.5]} 14. Bxc5
{[%clk 0:01:59.6]} 14... bxc5 {[%clk 0:02:42.4]} 15. Be4 {[%clk 0:01:52.7]}
15... Qf6 {[%clk 0:02:33.4]} 16. Bg2 {[%clk 0:01:23]} 16... Rb8 {[%clk
0:02:26.7]} 17. b3 {[%clk 0:01:22]} 17... Nd4 {[%clk 0:02:17.4]} 18. Nxd4 {[%clk
0:01:17.9]} 18... exd4 {[%clk 0:02:04.6]} 19. Ne4 {[%clk 0:01:18.8]} 19... Qf7
{[%clk 0:02:04]} 20. c3 {[%clk 0:01:15.7]} 20... dxc3 {[%clk 0:02:00.9]} 21.
Qxc3 {[%clk 0:01:16.6]} 21... Rb4 {[%clk 0:01:54.5]} 22. a3 {[%clk 0:01:10]}
22... Rd4 {[%clk 0:01:54.4]} 23. Rad1 {[%clk 0:01:03.9]} 23... Rxd1 {[%clk
0:01:44.1]} 24. Rxd1 {[%clk 0:01:04.8]} 24... Ne5 {[%clk 0:01:43.5]} 25. Qc2
{[%clk 0:00:23.6]} 25... Bg4 {[%clk 0:01:42.2]} 26. Rf1 {[%clk 0:00:18.3]} 26...
Bf3 {[%clk 0:01:41.9]} 27. Nd2 {[%clk 0:00:14.2]} 27... Be2 {[%clk 0:01:37.3]}
28. Rg1 {[%clk 0:00:08.1]} 28... Qxf2 {[%clk 0:01:35.7]} 29. Kh1 {[%clk
0:00:04]} 29... Qxg3 {[%clk 0:01:32.1]} 30. Qe4 {[%clk 0:00:02]} 30... Ng4
{[%clk 0:01:27.6]} 31. Bf3 {[%clk 0:00:01]} 0-1

[Event "*** Titled Tuesday Blitz"]
[Site "Chess.com"]
[Date "2020.11.24"]
[Round "7"]
[White "DonPreuss"]
[Black "Forantes"]
[Result "0-1"]
[WhiteElo "2245"]
[BlackElo "2375"]
[TimeControl "180+1"]
[EndTime "11:33:32 PST"]
[Termination "Forantes won by checkmate"]

1. d4 {[%clk 0:03:00.9]} 1... Nf6 {[%clk 0:02:59.2]} 2. Nc3 {[%clk 0:03:00.7]}
2... d5 {[%clk 0:02:58.9]} 3. e4 {[%clk 0:03:00.8]} 3... Nxe4 {[%clk 0:02:55.2]}
4. Nxe4 {[%clk 0:03:00.3]} 4... dxe4 {[%clk 0:02:56.1]} 5. Bc4 {[%clk
0:03:00.6]} 5... g6 {[%clk 0:02:50.3]} 6. c3 {[%clk 0:02:58.4]} 6... Bg7 {[%clk
0:02:49.6]} 7. Ne2 {[%clk 0:02:56.5]} 7... O-O {[%clk 0:02:47.7]} 8. Ng3 {[%clk
0:02:56.7]} 8... c5 {[%clk 0:02:46.6]} 9. d5 {[%clk 0:02:52.2]} 9... Nd7 {[%clk
0:02:32.9]} 10. Nxe4 {[%clk 0:02:28.7]} 10... Nb6 {[%clk 0:02:18.3]} 11. Qd3
{[%clk 0:02:26.6]} 11... Nxc4 {[%clk 0:02:17.9]} 12. Qxc4 {[%clk 0:02:26.1]}
12... b6 {[%clk 0:02:18.5]} 13. Bf4 {[%clk 0:02:18.9]} 13... a5 {[%clk
0:02:09.3]} 14. O-O-O {[%clk 0:02:08.9]} 14... Ba6 {[%clk 0:01:40.4]} 15. Qb3
{[%clk 0:02:08.4]} 15... Be2 {[%clk 0:01:14.7]} 16. Rd2 {[%clk 0:02:03.6]} 16...
a4 {[%clk 0:01:09.3]} 17. Qc2 {[%clk 0:01:43.4]} 17... Bc4 {[%clk 0:01:09.2]}
18. b3 {[%clk 0:01:35.3]} 18... axb3 {[%clk 0:01:09.1]} 19. axb3 {[%clk
0:01:35.5]} 19... Ra1+ {[%clk 0:01:09.6]} 20. Kb2 {[%clk 0:01:33.3]} 20... Rxh1
{[%clk 0:00:56.9]} 21. bxc4 {[%clk 0:01:31.2]} 21... Qa8 {[%clk 0:00:57.1]} 22.
Rd1 {[%clk 0:01:27.9]} 22... Rxd1 {[%clk 0:00:56.3]} 23. Qxd1 {[%clk 0:01:28]}
23... Qa6 {[%clk 0:00:41.9]} 24. Qb3 {[%clk 0:01:11.8]} 24... Ra8 {[%clk
0:00:42.3]} 25. Kc2 {[%clk 0:01:02.9]} 25... Qa1 {[%clk 0:00:42.1]} 26. Qxb6
{[%clk 0:00:58.4]} 26... Ra2+ {[%clk 0:00:41.5]} 27. Kd3 {[%clk 0:00:58.4]}
27... Qf1+ {[%clk 0:00:41.9]} 28. Ke3 {[%clk 0:00:39.3]} 28... Qe2# {[%clk
0:00:42.8]} 0-1

[Event "*** Titled Tuesday Blitz"]
[Site "Chess.com"]
[Date "2020.11.24"]
[Round "7"]
[White "SergeyShtyka"]
[Black "Gabrielian_Artur"]
[Result "0-1"]
[WhiteElo "2404"]
[BlackElo "2768"]
[TimeControl "180+1"]
[EndTime "11:33:36 PST"]
[Termination "Gabrielian_Artur won on time"]

1. e4 {[%clk 0:02:58.4]} 1... c5 {[%clk 0:02:57.5]} 2. Nf3 {[%clk 0:02:58.5]}
2... d6 {[%clk 0:02:57.2]} 3. d4 {[%clk 0:02:58.8]} 3... cxd4 {[%clk 0:02:57.4]}
4. Nxd4 {[%clk 0:02:59.6]} 4... Nf6 {[%clk 0:02:57.3]} 5. Nc3 {[%clk 0:02:59.9]}
5... Nc6 {[%clk 0:02:57.1]} 6. Bc4 {[%clk 0:02:59.3]} 6... Qb6 {[%clk
0:02:56.9]} 7. Nb3 {[%clk 0:02:55.2]} 7... e6 {[%clk 0:02:55.6]} 8. Be3 {[%clk
0:02:53.5]} 8... Qc7 {[%clk 0:02:55.4]} 9. Bd3 {[%clk 0:02:52.2]} 9... Be7
{[%clk 0:02:54.4]} 10. O-O {[%clk 0:02:52]} 10... O-O {[%clk 0:02:53.8]} 11. f4
{[%clk 0:02:49.9]} 11... b6 {[%clk 0:02:53.6]} 12. Qf3 {[%clk 0:02:49.1]} 12...
Bb7 {[%clk 0:02:53.5]} 13. Rae1 {[%clk 0:02:48.5]} 13... Nb4 {[%clk 0:02:51.3]}
14. a3 {[%clk 0:02:25.1]} 14... Nxd3 {[%clk 0:02:50.5]} 15. cxd3 {[%clk
0:02:25.6]} 15... d5 {[%clk 0:02:37.7]} 16. Nd4 {[%clk 0:01:45.8]} 16... dxe4
{[%clk 0:02:33.8]} 17. dxe4 {[%clk 0:01:45.6]} 17... Rfd8 {[%clk 0:02:27.3]} 18.
Bf2 {[%clk 0:01:30.4]} 18... Rac8 {[%clk 0:02:23.5]} 19. Ndb5 {[%clk 0:01:24.7]}
19... Qb8 {[%clk 0:02:19]} 20. Qe2 {[%clk 0:01:19.3]} 20... a6 {[%clk
0:02:14.1]} 21. Nd4 {[%clk 0:01:15.5]} 21... Rxc3 {[%clk 0:02:11.2]} 22. bxc3
{[%clk 0:01:03.3]} 22... Nxe4 {[%clk 0:02:11.2]} 23. f5 {[%clk 0:00:53.1]} 23...
e5 {[%clk 0:02:03.1]} 24. Nf3 {[%clk 0:00:48.7]} 24... Nxf2 {[%clk 0:01:58.4]}
25. Rxf2 {[%clk 0:00:12.6]} 25... Bxa3 {[%clk 0:01:55.7]} 26. Rff1 {[%clk
0:00:08.9]} 26... Bc5+ {[%clk 0:01:54]} 27. Kh1 {[%clk 0:00:09.2]} 27... f6
{[%clk 0:01:50.6]} 28. Qc4+ {[%clk 0:00:07.6]} 28... Bd5 {[%clk 0:01:40.3]} 29.
Qxa6 {[%clk 0:00:07.3]} 29... Qc8 {[%clk 0:01:37.7]} 30. Qe2 {[%clk 0:00:06.6]}
30... Qxf5 {[%clk 0:01:36.1]} 31. c4 {[%clk 0:00:05.1]} 31... Bb7 {[%clk
0:01:33.1]} 32. Nh4 {[%clk 0:00:03.2]} 32... Qg5 {[%clk 0:01:30.1]} 33. Nf5
{[%clk 0:00:03]} 33... Rd2 {[%clk 0:01:29.9]} 0-1

[Event "*** Titled Tuesday Blitz"]
[Site "Chess.com"]
[Date "2020.11.24"]
[Round "7"]
[White "elamier"]
[Black "Vladislav_Chizhikov"]
[Result "0-1"]
[WhiteElo "2368"]
[BlackElo "2532"]
[TimeControl "180+1"]
[EndTime "11:33:40 PST"]
[Termination "Vladislav_Chizhikov won by resignation"]

1. e4 {[%clk 0:03:00.9]} 1... e6 {[%clk 0:02:59.6]} 2. d4 {[%clk 0:03:00]} 2...
d5 {[%clk 0:02:59.8]} 3. Nd2 {[%clk 0:02:59.5]} 3... dxe4 {[%clk 0:02:59]} 4.
Nxe4 {[%clk 0:02:59.5]} 4... Nd7 {[%clk 0:02:59.9]} 5. g3 {[%clk 0:02:56.9]}
5... Ngf6 {[%clk 0:03:00]} 6. Nxf6+ {[%clk 0:02:56.5]} 6... Nxf6 {[%clk
0:03:00.9]} 7. Bg2 {[%clk 0:02:56.1]} 7... c5 {[%clk 0:03:01.2]} 8. Ne2 {[%clk
0:02:53.9]} 8... Qa5+ {[%clk 0:03:01.1]} 9. c3 {[%clk 0:02:53]} 9... Qa6 {[%clk
0:03:00.9]} 10. O-O {[%clk 0:02:51.1]} 10... Bd7 {[%clk 0:03:01.3]} 11. Re1
{[%clk 0:02:49.1]} 11... Bc6 {[%clk 0:03:00.4]} 12. Bf1 {[%clk 0:02:36.7]} 12...
Qb6 {[%clk 0:02:56.5]} 13. a3 {[%clk 0:01:46.9]} 13... O-O-O {[%clk 0:02:54.5]}
14. b4 {[%clk 0:01:43.6]} 14... cxd4 {[%clk 0:02:54.4]} 15. cxd4 {[%clk
0:01:43.4]} 15... h5 {[%clk 0:02:49.2]} 16. Be3 {[%clk 0:01:41.6]} 16... Nd5
{[%clk 0:02:45.6]} 17. Qc1 {[%clk 0:01:33]} 17... Kb8 {[%clk 0:02:40.7]} 18. Nc3
{[%clk 0:01:23.6]} 18... h4 {[%clk 0:02:23.2]} 19. b5 {[%clk 0:01:20.7]} 19...
Nxe3 {[%clk 0:02:16]} 20. fxe3 {[%clk 0:01:19.9]} 20... Bf3 {[%clk 0:01:57.6]}
21. Bg2 {[%clk 0:01:01]} 21... Bxg2 {[%clk 0:01:54]} 22. Kxg2 {[%clk 0:01:00.4]}
22... Bd6 {[%clk 0:01:43.6]} 23. Ne4 {[%clk 0:00:56.3]} 23... Qxb5 {[%clk
0:01:40.1]} 24. Nxd6 {[%clk 0:00:27.8]} 24... Rxd6 {[%clk 0:01:38.6]} 25. Qd1
{[%clk 0:00:17.4]} 25... hxg3 {[%clk 0:01:21.8]} 26. hxg3 {[%clk 0:00:16.5]}
26... Rc6 {[%clk 0:01:17.3]} 27. Ra2 {[%clk 0:00:04.9]} 27... Qd5+ {[%clk
0:01:13.5]} 0-1

[Event "*** Titled Tuesday Blitz"]
[Site "Chess.com"]
[Date "2020.11.24"]
[Round "7"]
[White "CoachHakia"]
[Black "BlixLT"]
[Result "0-1"]
[WhiteElo "2169"]
[BlackElo "2351"]
[TimeControl "180+1"]
[EndTime "11:33:43 PST"]
[Termination "BlixLT won by checkmate"]

1. d4 {[%clk 0:03:00.9]} 1... d5 {[%clk 0:02:59.4]} 2. Nf3 {[%clk 0:02:58.5]}
2... Nc6 {[%clk 0:02:59.5]} 3. e3 {[%clk 0:02:56.7]} 3... Bg4 {[%clk 0:02:59.3]}
4. Nbd2 {[%clk 0:02:56.3]} 4... e5 {[%clk 0:02:58.1]} 5. dxe5 {[%clk 0:02:56.7]}
5... Nxe5 {[%clk 0:02:57.5]} 6. Be2 {[%clk 0:02:57.2]} 6... Ng6 {[%clk 0:02:38]}
7. O-O {[%clk 0:02:54.9]} 7... Nf6 {[%clk 0:02:38]} 8. b3 {[%clk 0:02:53.9]}
8... Bd6 {[%clk 0:02:37.2]} 9. Bb2 {[%clk 0:02:53.7]} 9... Qe7 {[%clk
0:02:35.7]} 10. c4 {[%clk 0:02:47.6]} 10... O-O-O {[%clk 0:02:32.4]} 11. cxd5
{[%clk 0:02:23.1]} 11... Nxd5 {[%clk 0:02:28.8]} 12. Nc4 {[%clk 0:02:15.4]}
12... Bc5 {[%clk 0:02:23.5]} 13. Qe1 {[%clk 0:02:03.1]} 13... f6 {[%clk
0:02:09.5]} 14. Nd4 {[%clk 0:01:53.4]} 14... h5 {[%clk 0:02:02.3]} 15. Rc1
{[%clk 0:01:44.6]} 15... Kb8 {[%clk 0:02:01.9]} 16. a3 {[%clk 0:01:43.6]} 16...
Nh4 {[%clk 0:01:22.3]} 17. b4 {[%clk 0:01:27.2]} 17... Bd6 {[%clk 0:01:20.1]}
18. Nxd6 {[%clk 0:01:18.5]} 18... Rxd6 {[%clk 0:01:20.2]} 19. Nb5 {[%clk
0:01:00.8]} 19... Rd7 {[%clk 0:01:20.2]} 20. Bd4 {[%clk 0:00:56.5]} 20... a6
{[%clk 0:01:20.5]} 21. Nc3 {[%clk 0:00:54.8]} 21... Re8 {[%clk 0:01:08.9]} 22.
Nxd5 {[%clk 0:00:39.6]} 22... Rxd5 {[%clk 0:01:08.3]} 23. b5 {[%clk 0:00:26.2]}
23... Bxe2 {[%clk 0:00:51.9]} 24. Qxe2 {[%clk 0:00:27.1]} 24... Rxd4 {[%clk
0:00:52.3]} 25. bxa6 {[%clk 0:00:25.7]} 25... Qe4 {[%clk 0:00:41.8]} 26. axb7
{[%clk 0:00:24.8]} 26... Qxg2# {[%clk 0:00:40.7]} 0-1

[Event "*** Titled Tuesday Blitz"]
[Site "Chess.com"]
[Date "2020.11.24"]
[Round "7"]
[White "Akhayan"]
[Black "RamyresCoelho"]
[Result "0-1"]
[WhiteElo "2259"]
[BlackElo "2099"]
[TimeControl "180+1"]
[EndTime "11:33:47 PST"]
[Termination "RamyresCoelho won by resignation"]

1. d4 {[%clk 0:03:00.9]} 1... Nf6 {[%clk 0:02:59.8]} 2. c4 {[%clk 0:02:59.7]}
2... g6 {[%clk 0:02:42.8]} 3. Nc3 {[%clk 0:02:59.6]} 3... d5 {[%clk 0:02:42.4]}
4. Nf3 {[%clk 0:02:51.6]} 4... Bg7 {[%clk 0:02:41.9]} 5. Qb3 {[%clk 0:02:49.7]}
5... dxc4 {[%clk 0:02:39.3]} 6. Qxc4 {[%clk 0:02:49.1]} 6... O-O {[%clk
0:02:40.2]} 7. e4 {[%clk 0:02:46.9]} 7... a6 {[%clk 0:02:37.1]} 8. Qb3 {[%clk
0:02:44.9]} 8... Nc6 {[%clk 0:02:31.5]} 9. Be3 {[%clk 0:02:42.6]} 9... Ng4
{[%clk 0:02:25.3]} 10. d5 {[%clk 0:02:39.1]} 10... Nxe3 {[%clk 0:02:23.9]} 11.
fxe3 {[%clk 0:02:38.2]} 11... Ne5 {[%clk 0:02:18.7]} 12. Be2 {[%clk 0:02:36.2]}
12... Nxf3+ {[%clk 0:02:18.1]} 13. gxf3 {[%clk 0:02:34.2]} 13... e6 {[%clk
0:02:19]} 14. O-O-O {[%clk 0:02:32.9]} 14... b5 {[%clk 0:02:10]} 15. Kb1 {[%clk
0:02:31.8]} 15... Qe7 {[%clk 0:02:09.3]} 16. h4 {[%clk 0:02:19.3]} 16... Bb7
{[%clk 0:01:53.4]} 17. dxe6 {[%clk 0:02:16.1]} 17... fxe6 {[%clk 0:01:49.7]} 18.
h5 {[%clk 0:02:14]} 18... c5 {[%clk 0:01:48.7]} 19. hxg6 {[%clk 0:02:12.5]}
19... hxg6 {[%clk 0:01:49.6]} 20. Rdg1 {[%clk 0:02:03.1]} 20... Qf6 {[%clk
0:01:40.3]} 21. Qc2 {[%clk 0:01:41.4]} 21... c4 {[%clk 0:01:28.4]} 22. e5 {[%clk
0:01:36]} 22... Qf5 {[%clk 0:01:01.2]} 23. Qxf5 {[%clk 0:01:31.6]} 23... gxf5
{[%clk 0:00:58.6]} 24. Rg6 {[%clk 0:01:21.9]} 24... Kf7 {[%clk 0:00:57]} 25. Rg2
{[%clk 0:01:10.4]} 25... Rh8 {[%clk 0:00:52.5]} 26. Rxh8 {[%clk 0:01:08.4]}
26... Rxh8 {[%clk 0:00:53.4]} 27. Rg1 {[%clk 0:00:53]} 27... Bxe5 {[%clk
0:00:52.3]} 28. Rd1 {[%clk 0:00:53]} 28... Rh2 {[%clk 0:00:48.2]} 29. Rd7+
{[%clk 0:00:50.6]} 29... Kf6 {[%clk 0:00:46.2]} 30. Rxb7 {[%clk 0:00:47.8]}
30... Bxc3 {[%clk 0:00:46.2]} 31. bxc3 {[%clk 0:00:41.8]} 31... Rxe2 {[%clk
0:00:46.2]} 32. Rb6 {[%clk 0:00:40.9]} 32... Rxe3 {[%clk 0:00:44.9]} 0-1

[Event "*** Titled Tuesday Blitz"]
[Site "Chess.com"]
[Date "2020.11.24"]
[Round "7"]
[White "ChessWarrior7197"]
[Black "K_A_S_T_O_R"]
[Result "0-1"]
[WhiteElo "2987"]
[BlackElo "2827"]
[TimeControl "180+1"]
[EndTime "11:33:48 PST"]
[Termination "K_A_S_T_O_R won by resignation"]

1. d4 {[%clk 0:03:00.9]} 1... Nf6 {[%clk 0:02:59.1]} 2. Nf3 {[%clk 0:02:59.8]}
2... e6 {[%clk 0:02:57.7]} 3. e3 {[%clk 0:02:58.1]} 3... d5 {[%clk 0:02:48.8]}
4. Bd3 {[%clk 0:02:55.3]} 4... c5 {[%clk 0:02:43.2]} 5. O-O {[%clk 0:02:55.1]}
5... c4 {[%clk 0:02:42.3]} 6. Be2 {[%clk 0:02:55.1]} 6... b5 {[%clk 0:02:42.4]}
7. b3 {[%clk 0:02:53.1]} 7... Bb7 {[%clk 0:02:41.6]} 8. a4 {[%clk 0:02:52.9]}
8... a6 {[%clk 0:02:40.1]} 9. c3 {[%clk 0:02:50.6]} 9... Nbd7 {[%clk 0:02:36.6]}
10. Ba3 {[%clk 0:02:50.7]} 10... Bxa3 {[%clk 0:02:26.9]} 11. Nxa3 {[%clk
0:02:51.6]} 11... Bc6 {[%clk 0:02:26.9]} 12. Nc2 {[%clk 0:02:34.4]} 12... Qc7
{[%clk 0:02:22.9]} 13. Nb4 {[%clk 0:02:32.1]} 13... O-O {[%clk 0:02:21.4]} 14.
Nd2 {[%clk 0:02:24.4]} 14... Bb7 {[%clk 0:02:19]} 15. axb5 {[%clk 0:02:21.6]}
15... axb5 {[%clk 0:02:18.5]} 16. Qc2 {[%clk 0:02:22.2]} 16... Rfc8 {[%clk
0:02:16.9]} 17. Qb2 {[%clk 0:02:20.2]} 17... h6 {[%clk 0:02:15]} 18. Bf3 {[%clk
0:02:10.8]} 18... Nb6 {[%clk 0:02:10.8]} 19. Rxa8 {[%clk 0:02:09.1]} 19... Rxa8
{[%clk 0:02:08.7]} 20. Ra1 {[%clk 0:02:09.5]} 20... Rxa1+ {[%clk 0:02:00]} 21.
Qxa1 {[%clk 0:02:10.4]} 21... cxb3 {[%clk 0:02:00]} 22. Nxb3 {[%clk 0:01:58.5]}
22... Na4 {[%clk 0:01:59]} 23. Kf1 {[%clk 0:01:19.8]} 23... Qc4+ {[%clk
0:01:56.2]} 24. Ke1 {[%clk 0:01:02.7]} 24... Qxb3 {[%clk 0:01:55.4]} 25. Kd2
{[%clk 0:01:03.6]} 25... Ne4+ {[%clk 0:01:45.1]} 26. Bxe4 {[%clk 0:01:03.2]}
26... dxe4 {[%clk 0:01:45.6]} 27. Nc2 {[%clk 0:00:56.6]} 27... Nb6 {[%clk
0:01:40.5]} 28. Nb4 {[%clk 0:00:16.2]} 28... Bd5 {[%clk 0:01:32.2]} 29. g4
{[%clk 0:00:14.1]} 29... Nc4+ {[%clk 0:01:28]} 30. Ke1 {[%clk 0:00:13.1]} 30...
Na3 {[%clk 0:01:21.1]} 31. Qc1 {[%clk 0:00:04]} 31... Nb1 {[%clk 0:01:17.9]} 32.
Kf1 {[%clk 0:00:02.5]} 32... Nxc3 {[%clk 0:01:17.2]} 33. Na6 {[%clk 0:00:02.4]}
33... Qb1 {[%clk 0:01:16.3]} 34. Kg2 {[%clk 0:00:03]} 0-1

[Event "*** Titled Tuesday Blitz"]
[Site "Chess.com"]
[Date "2020.11.24"]
[Round "7"]
[White "crazy_but_lazy"]
[Black "korbul"]
[Result "1/2-1/2"]
[WhiteElo "2455"]
[BlackElo "2561"]
[TimeControl "180+1"]
[EndTime "11:33:54 PST"]
[Termination "Game drawn by repetition"]

1. g3 {[%clk 0:03:00.9]} 1... d5 {[%clk 0:02:32.5]} 2. Bg2 {[%clk 0:03:00.7]}
2... Nf6 {[%clk 0:02:32.5]} 3. c4 {[%clk 0:02:59.6]} 3... e6 {[%clk 0:02:32.8]}
4. d4 {[%clk 0:02:59]} 4... Be7 {[%clk 0:02:32.7]} 5. Nf3 {[%clk 0:02:59]} 5...
O-O {[%clk 0:02:32.6]} 6. O-O {[%clk 0:02:59.5]} 6... c6 {[%clk 0:02:33.2]} 7.
b3 {[%clk 0:02:57.7]} 7... Nbd7 {[%clk 0:02:32.8]} 8. Nbd2 {[%clk 0:02:58.1]}
8... b6 {[%clk 0:02:32.9]} 9. Bb2 {[%clk 0:02:58.4]} 9... Bb7 {[%clk 0:02:31.8]}
10. e3 {[%clk 0:02:58.4]} 10... Rc8 {[%clk 0:02:30.3]} 11. Qe2 {[%clk 0:02:59]}
11... c5 {[%clk 0:02:27.8]} 12. Rfd1 {[%clk 0:02:58.1]} 12... Qc7 {[%clk
0:02:27.4]} 13. Rac1 {[%clk 0:02:57.6]} 13... Qb8 {[%clk 0:02:27.5]} 14. Ne5
{[%clk 0:02:39]} 14... Nxe5 {[%clk 0:02:23.9]} 15. dxe5 {[%clk 0:02:39.9]} 15...
Nd7 {[%clk 0:02:22.5]} 16. cxd5 {[%clk 0:02:36.7]} 16... Bxd5 {[%clk 0:02:19.2]}
17. e4 {[%clk 0:02:28]} 17... Bc6 {[%clk 0:02:16.1]} 18. f4 {[%clk 0:02:27.6]}
18... b5 {[%clk 0:01:52.1]} 19. h4 {[%clk 0:02:14]} 19... a5 {[%clk 0:01:51.3]}
20. f5 {[%clk 0:02:13.1]} 20... Nxe5 {[%clk 0:01:46.8]} 21. Nf3 {[%clk
0:02:00.7]} 21... Nxf3+ {[%clk 0:01:42.8]} 22. Qxf3 {[%clk 0:02:00.5]} 22... e5
{[%clk 0:01:43.1]} 23. Kh2 {[%clk 0:01:38.1]} 23... Rfd8 {[%clk 0:01:40.9]} 24.
Kh3 {[%clk 0:01:36.9]} 24... f6 {[%clk 0:01:38]} 25. g4 {[%clk 0:01:35.4]} 25...
Rxd1 {[%clk 0:01:33]} 26. Rxd1 {[%clk 0:01:35.5]} 26... Rd8 {[%clk 0:01:33.5]}
27. Bc3 {[%clk 0:01:29.2]} 27... b4 {[%clk 0:01:30.5]} 28. Be1 {[%clk
0:01:22.6]} 28... Bb5 {[%clk 0:01:22.9]} 29. Rxd8+ {[%clk 0:01:13.7]} 29... Qxd8
{[%clk 0:01:21.9]} 30. Bf1 {[%clk 0:01:14.6]} 30... Bxf1+ {[%clk 0:01:12.6]} 31.
Qxf1 {[%clk 0:01:14.5]} 31... Qd1 {[%clk 0:01:12.4]} 32. Qc4+ {[%clk 0:01:13.8]}
32... Kf8 {[%clk 0:01:12]} 33. Bg3 {[%clk 0:01:03.4]} 33... Qd4 {[%clk 0:01:02]}
34. Qe6 {[%clk 0:00:56.6]} 34... Qxe4 {[%clk 0:00:29.4]} 35. Qc8+ {[%clk
0:00:53.4]} 35... Kf7 {[%clk 0:00:29.6]} 36. Qe6+ {[%clk 0:00:53.9]} 36... Kf8
{[%clk 0:00:27.7]} 37. Qc8+ {[%clk 0:00:54]} 37... Kf7 {[%clk 0:00:28.1]} 38.
Qe6+ {[%clk 0:00:54.5]} 38... Kf8 {[%clk 0:00:28.4]} 1/2-1/2

[Event "*** Titled Tuesday Blitz"]
[Site "Chess.com"]
[Date "2020.11.24"]
[Round "7"]
[White "Susal_De_Silva"]
[Black "anon481216"]
[Result "1-0"]
[WhiteElo "2538"]
[BlackElo "2405"]
[TimeControl "180+1"]
[EndTime "11:33:57 PST"]
[Termination "Susal_De_Silva won on time"]

1. e4 {[%clk 0:03:00.9]} 1... c5 {[%clk 0:02:58.8]} 2. Nf3 {[%clk 0:03:01.1]}
2... e6 {[%clk 0:02:59]} 3. d4 {[%clk 0:03:01.1]} 3... cxd4 {[%clk 0:02:59.1]}
4. Nxd4 {[%clk 0:03:02]} 4... Nc6 {[%clk 0:02:59.4]} 5. Be2 {[%clk 0:03:01.7]}
5... d6 {[%clk 0:02:53.2]} 6. O-O {[%clk 0:03:01.2]} 6... Nf6 {[%clk 0:02:53]}
7. Nc3 {[%clk 0:03:00.5]} 7... Be7 {[%clk 0:02:52.6]} 8. Be3 {[%clk 0:02:59.6]}
8... O-O {[%clk 0:02:52.1]} 9. f4 {[%clk 0:02:59.8]} 9... a6 {[%clk 0:02:51.7]}
10. a4 {[%clk 0:02:59.8]} 10... Qc7 {[%clk 0:02:50.1]} 11. Kh1 {[%clk
0:02:59.9]} 11... Re8 {[%clk 0:02:42.7]} 12. Qe1 {[%clk 0:02:59.4]} 12... Nxd4
{[%clk 0:02:40]} 13. Bxd4 {[%clk 0:03:00.3]} 13... e5 {[%clk 0:02:40.4]} 14. Be3
{[%clk 0:02:59.8]} 14... exf4 {[%clk 0:02:19.9]} 15. Bxf4 {[%clk 0:02:58.2]}
15... Be6 {[%clk 0:02:20]} 16. Qg3 {[%clk 0:02:55]} 16... Nd7 {[%clk 0:02:16.4]}
17. Bh6 {[%clk 0:02:43.5]} 17... Bf8 {[%clk 0:02:13.5]} 18. Rf4 {[%clk
0:02:29.5]} 18... Ne5 {[%clk 0:02:12.3]} 19. Bg5 {[%clk 0:02:25.5]} 19... Ng6
{[%clk 0:01:59.6]} 20. Rf2 {[%clk 0:02:18.7]} 20... f6 {[%clk 0:01:59.1]} 21.
Be3 {[%clk 0:02:16.6]} 21... Rac8 {[%clk 0:01:58.2]} 22. Raf1 {[%clk 0:02:15.2]}
22... Qc6 {[%clk 0:01:43.6]} 23. h4 {[%clk 0:02:13.4]} 23... Kh8 {[%clk
0:01:41.7]} 24. h5 {[%clk 0:02:11.7]} 24... Ne5 {[%clk 0:01:41.7]} 25. h6 {[%clk
0:02:09.4]} 25... gxh6 {[%clk 0:01:28.3]} 26. Rxf6 {[%clk 0:02:04.1]} 26... Bg7
{[%clk 0:01:27.9]} 27. Qh4 {[%clk 0:01:29.9]} 27... Bxf6 {[%clk 0:00:53.1]} 28.
Qxf6+ {[%clk 0:01:30.8]} 28... Kg8 {[%clk 0:00:53.1]} 29. Bxh6 {[%clk 0:01:31]}
29... Qd7 {[%clk 0:00:52.7]} 30. Bh5 {[%clk 0:01:30.7]} 30... Red8 {[%clk
0:00:31.9]} 31. Nd5 {[%clk 0:01:30.8]} 31... Bxd5 {[%clk 0:00:27.2]} 32. exd5
{[%clk 0:01:31.7]} 32... b5 {[%clk 0:00:10.3]} 33. a5 {[%clk 0:01:29.5]} 33...
b4 {[%clk 0:00:10]} 34. b3 {[%clk 0:01:30]} 34... Ra8 {[%clk 0:00:05.8]} 35.
Qg5+ {[%clk 0:01:17.8]} 35... Kh8 {[%clk 0:00:05]} 36. Rf7 {[%clk 0:01:13.6]}
1-0